[Event "Baku Open 2024"]
[Site "Baku"]
[Date "2024.07.05"]
[Round "7.31"]
[White "Serikbay, Assel"]
[Black "Hamidov, Allahverdi"]
[Result "1-0"]
[ECO "D37"]
[WhiteElo "2217"]
[BlackElo "2307"]
[Annotator "TA"]
[PlyCount "95"]
[EventDate "2024.06.29"]
[EventType "swiss"]
[EventCountry "AZE"]
[SourceTitle "playchess.com"]
[Source "ChessBase"]
[SourceQuality "1"]
[TimeControl "5400+30"]

{[%evp 15,95,6,21,2,16,16,33,12,7,0,0,0,20,11,75,69,71,61,102,105,104,112,113,98,264,279,291,301,287,279,381,362,375,378,382,368,458,458,520,504,506,477,588,585,646,649,629,615,596,593,818,779,841,807,1152,1079,1018,1065,1171,1158,1020,1098,29983,29984,29983,29981,29981,29974,29973,29975,29971,29973,29973,29974,29977,29978,29980,29981,29982,29983,29981,29981]} 1. d4 {[%emt 0:00:04]} d5 {[%emt 0:00:19]} 2. Nf3 {[%emt 0:00:07]} e6 {[%emt 0:00:11]} 3. c4 {[%emt 0:00:06]} Nf6 {[%emt 0:00:04]} 4. Nc3 {[%emt 0:00:15]} Be7 {[%emt 0:00:04]} 5. Bf4 {[%emt 0:00:11]} O-O {[%emt 0:00:44]} 6. e3 {[%emt 0:00:12]} Nbd7 {[%emt 0:02:04]} 7. c5 {[%emt 0:01:02]} c6 {[%emt 0:00:27]} 8. Bd3 {[%emt 0:01:22]} b6 {[%emt 0:00:33]} 9. b4 {[%emt 0:00:24]} a5 {[%emt 0:00:22]} 10. a3 {[%emt 0:01:47]} Ba6 {[%emt 0:00:25]} 11. Bxa6 {[%emt 0:04:13] Weiß steht etwas besser.} Rxa6 {[%emt 0:00:07]} 12. Qe2 {[%emt 0:19:57]} Qa8 {[%emt 0:05:02]} 13. b5 {[%emt 0:04:21]} cxb5 {[%emt 0:32:04]} 14. Nxb5 {[%emt 0:00:49]} Qc6 {[%emt 0:07:05] [#]} (14... bxc5 $2 15. Nc7 $18) (14... Rc8 $11) 15. Bd6 $1 $16 {[%emt 0:13:18]} Bxd6 {[%emt 0:06:58]} 16. cxd6 {[%emt 0:00:06]} Ne4 {[%emt 0:00:20]} 17. O-O {[%emt 0:01:15] Und jetzt Rfc1 wäre schön.} Rc8 {[%emt 0:04:00]} 18. Nc7 $36 {[%emt 0:08:35][%mdl 2048] Pariert Raa8. Schwarz muss aufpassen.} Ra7 {[%emt 0:00:56]} 19. Rac1 {[%emt 0:00:31]} Qb7 {[%emt 0:04:29] [#] Verliert die Partie.} (19... Qxd6 $2 20. Nb5 Rxc1 21. Rxc1 $18 (21. Nxd6 Rxf1+ 22. Kxf1 Nxd6 $16)) (19... Qa4 $16 20. Qb5 Qxb5 21. Nxb5 Raa8) 20. Nb5 $1 $18 {[%emt 0:03:43]} Raa8 {[%emt 0:00:10]} 21. Rc7 {[%emt 0:23:10]} Rxc7 {[%emt 0:00:25]} 22. dxc7 {[%emt 0:00:05]} (22. Nxc7 Rc8 23. Nb5 f6 $11) 22... Qc6 {[%emt 0:02:48]} 23. Qb2 {[%emt 0:00:33]} Nd6 {[%emt 0:01:23]} 24. Rc1 {[%emt 0:00:13]} Nc4 {[%emt 0:00:11]} 25. Nd2 {[%emt 0:02:17]} Nf6 {[%emt 0:01:37]} 26. a4 {[%emt 0:05:06]} Ne8 {[%emt 0:01:52]} 27. Nxc4 {[%emt 0:00:07]} dxc4 {[%emt 0:00:35]} 28. Qa2 {[%emt 0:00:20]} Nd6 {[%emt 0:03:19]} 29. Nxd6 {[%emt 0:00:12]} Qxd6 {[%emt 0:00:05]} 30. Qxc4 {[%emt 0:00:27][%mdl 4096] Endspiel. KQR-KQR} Rc8 {[%emt 0:00:10]} 31. Qa6 {[%emt 0:02:08]} Qd7 {[%emt 0:00:22] [#]} 32. Rc6 $3 {[%emt 0:01:01][%mdl 512]} e5 {[%emt 0:00:39]} (32... g5 33. Qxb6) 33. Qxb6 {[%emt 0:00:11]} ({Schwächer ist} 33. Rxb6 Qxc7 34. g3 (34. Qxa5 $2 {wird mattgesetzt.} Qc1+) 34... exd4 $16) 33... exd4 {[%emt 0:00:06]} 34. exd4 {[%emt 0:01:28]} Qe8 {[%emt 0:00:37]} 35. Kf1 {[%emt 0:03:31][%cal Oc6d6] Weiss will mit Rd6! Matt setzen.} Qe4 {[%emt 0:00:24]} 36. Rc1 {[%emt 0:00:28]} Qf4 {[%emt 0:00:42]} 37. Qc5 {[%emt 0:03:19] Droht stark d5.} Qxh2 {[%emt 0:00:22]} 38. Qf5 {[%emt 0:02:36]} (38. Qxa5 $2 {verliert.} Qh1+ 39. Ke2 Qxc1 $19) 38... Re8 {[%emt 0:04:25]} 39. Qh3 $1 {[%emt 0:00:00] Aktives Gegenspiel! Weiß setzt Matt.} (39. c8=B $2 Qh1#) 39... Qxh3 {[%emt 0:00:02]} 40. gxh3 {[%emt 0:00:00] KR-KR} Rc8 {[%emt 0:00:01]} 41. d5 {[%emt 0:00:00][%cal Bd4d5,Bd5d6][%mdl 32]} Kf8 {[%emt 0:00:03]} 42. d6 {[%emt 0:00:00]} Ke8 {[%emt 0:00:00]} 43. Rb1 {[%emt 0:00:15]} Kd7 {[%emt 0:00:05]} 44. Rb8 {[%emt 0:00:09]} g5 {[%emt 0:00:05]} 45. Ke2 {[%emt 0:00:32]} h5 {[%emt 0:00:06][%cal Bh7h5,Bh5h4][%mdl 32]} 46. f3 {[%emt 0:00:57]} f5 {[%emt 0:00:06]} 47. Kf2 {[%emt 0:00:39]} h4 {[%emt 0:00:13]} 48. Kg2 {[%emt 0:00:09] Gewichteter Fehlerwert: Weiß=0.02 (makellos) /Schwarz=0.43.  Verlustzug:     	---       	Schwarz=1     Fehler:       	---       	Schwarz=1     Ungenau:       	---       	Schwarz=2     OK:         	Weiß=10    	Schwarz=7     Bester:       	Weiß=3     	Schwarz=4     Stark:        	Weiß=2     	---} 1-0

[Event "Baku Open 2024"]
[Site "Baku"]
[Date "2024.07.05"]
[Round "7.32"]
[White "Zhukova, Natalia"]
[Black "Lyutsinger, Iren"]
[Result "1-0"]
[ECO "A22"]
[WhiteElo "2306"]
[BlackElo "2069"]
[Annotator "TA"]
[PlyCount "73"]
[EventDate "2024.06.29"]
[EventType "swiss"]
[EventCountry "AZE"]
[SourceTitle "playchess.com"]
[Source "ChessBase"]
[SourceQuality "1"]
[TimeControl "5400+30"]

{[%evp 10,73,7,20,18,16,21,15,50,0,26,-12,0,0,0,-7,0,0,0,0,42,42,33,30,56,59,67,57,57,52,99,100,87,93,91,114,104,98,117,85,95,90,182,156,182,170,605,600,589,670,660,657,662,652,619,565,1560,1604,1595,1603,1500,1456,1557,1530,29990,831]} 1. c4 {[%emt 0:00:04]} e5 {[%emt 0:00:06]} 2. Nc3 {[%emt 0:00:41]} Nf6 {[%emt 0:00:08]} 3. g3 {[%emt 0:00:43]} d5 {[%emt 0:00:06]} 4. cxd5 {[%emt 0:00:15]} Nxd5 {[%emt 0:00:05]} 5. Bg2 {[%emt 0:00:13]} Nb6 {[%emt 0:00:06]} 6. e3 {[%emt 0:02:36]} Be7 {[%emt 0:02:46]} 7. Nge2 {[%emt 0:00:17]} O-O {[%emt 0:00:45]} 8. O-O {[%emt 0:01:13]} c6 {[%emt 0:16:32] The position is equal.} 9. f4 {[%emt 0:03:07]} N8d7 {[%emt 0:06:05]} 10. d4 {[%emt 0:12:21]} exd4 {[%emt 0:02:10]} 11. Nxd4 {[%emt 0:00:11]} Nf6 {[%emt 0:02:00]} 12. h3 {[%emt 0:00:21]} Re8 {[%emt 0:03:00]} 13. Qc2 {[%emt 0:16:10]} Nbd5 {[%emt 0:12:51]} 14. Rd1 {[%emt 0:02:43]} Nxc3 {[%emt 0:15:44]} 15. bxc3 {[%emt 0:00:22][%cal Od4c6,Bb2c3,Bc3c4,Bc4d5][%mdl 32]} Qa5 {[%emt 0:00:40]} 16. e4 {[%emt 0:12:57][%cal Be3e4,Be4e5][%mdl 32]} Bc5 {[%emt 0:05:36][%cal Oc8h3,Be7c5,Bc5b6,Bb6d4,Bd4c3][%mdl 32]} 17. Kh2 {[%emt 0:04:37]} Bb6 {[%emt 0:07:24]} 18. e5 {[%emt 0:04:00] [#] Black must now prevent Nb3.} Nd5 {[%emt 0:00:19]} 19. c4 {[%emt 0:02:58]} Qc3 {[%emt 0:06:01]} (19... Nb4 $14 20. Qb3 Bc5) 20. cxd5 $16 {[%emt 0:02:18]} Bxd4 {[%emt 0:00:05]} 21. Qxc3 {[%emt 0:00:10]} Bxc3 {[%emt 0:00:01]} 22. Rb1 $36 {[%emt 0:00:20][%mdl 2048] Keeping Black busy.} cxd5 {[%emt 0:00:21]} 23. Bxd5 {[%emt 0:00:17]} Rb8 {[%emt 0:02:30]} 24. Ba3 {[%emt 0:03:12] White is more active.} Bf5 {[%emt 0:03:08]} 25. Rbc1 {[%emt 0:04:20]} Rbc8 {[%emt 0:01:32]} (25... Ba5 $16) 26. Bxb7 $18 {[%emt 0:02:53]} Rc7 {[%emt 0:00:12]} 27. Bd5 {[%emt 0:02:40]} Rb8 {[%emt 0:01:25] Against Bb4} (27... Be6 28. Kg2 a5) 28. g4 {[%emt 0:10:43]} Be6 {[%emt 0:03:10]} 29. Bxe6 {[%emt 0:06:10]} fxe6 {[%emt 0:00:01]} 30. Bd6 {[%emt 0:00:07]} Rb2+ {[%emt 0:00:21]} 31. Kg3 {[%emt 0:00:45]} Rc4 {[%emt 0:01:57]} 32. Rd3 {[%emt 0:00:05]} g5 {[%emt 0:01:31]} 33. Rdxc3 {[%emt 0:00:52]} gxf4+ {[%emt 0:00:35]} 34. Kf3 {[%emt 0:00:49]} Rxc3+ {[%emt 0:00:14]} 35. Rxc3 {[%emt 0:00:03]} Rxa2 {[%emt 0:00:11]} 36. Kxf4 {[%emt 0:00:27] [#] White threatens Kg5 and mate.} h5 {[%emt 0:00:35]} 37. Ke4 {[%emt 0:07:00] Weighted Error Value: White=0.05 (flawless) /Black=0.61.  Mistake:       	---       	Black=3      Inaccurate:     	White=1     	Black=3      OK:         	White=11    	Black=8      Best:        	White=3     	Black=2} (37. Kg5 $142 Kf7 38. Rc8 (38. Kxh5 Ke8 $18) 38... Rd2 39. Kh6 (39. Kxh5 Rh2 40. h4 Rh1 41. g5 Rxh4+ 42. Kxh4 Kg6 43. Kg4 Kh7 44. Kh5 Kg7 45. Bf8+ Kg8 46. Kg6 Kh8 47. Bh6#) 39... Rxd6 40. exd6 Kf6 41. d7 (41. gxh5 Kf5 42. d7 Kf4 43. d8=Q Kf3 44. Qd3+ Kf4 45. Rc4+ Ke5 46. Qd4+ Kf5 47. Qf4#) 41... Ke5 42. d8=Q (42. d8=B hxg4 43. hxg4 Kd6 44. g5 Kd7 45. Rc7+ Kd6 46. g6 Ke5)) 1-0

[Event "Baku Open 2024"]
[Site "Baku"]
[Date "2024.07.05"]
[Round "7.33"]
[White "Khamdamova, Afruza"]
[Black "Abdinova, Narmin"]
[Result "1-0"]
[ECO "B41"]
[WhiteElo "2291"]
[BlackElo "2121"]
[Annotator "RC"]
[PlyCount "93"]
[EventDate "2024.06.29"]
[EventType "swiss"]
[EventCountry "AZE"]
[SourceTitle "playchess.com"]
[Source "ChessBase"]
[SourceQuality "1"]
[TimeControl "5400+30"]

1. e4 {[%emt 0:00:19]} c5 {[%emt 0:00:21]} 2. Nf3 {[%emt 0:00:17]} a6 {[%emt 0:00:08]} 3. c4 {[%emt 0:00:29]} Nc6 {[%emt 0:00:11]} 4. d4 {[%emt 0:01:06]} cxd4 {[%emt 0:00:31]} 5. Nxd4 {[%emt 0:00:06]} Nf6 {[%emt 0:00:34]} 6. Nc3 {[%emt 0:00:43]} Qc7 {[%emt 0:00:50]} 7. Be3 {[%emt 0:07:05]} e6 {[%emt 0:00:59]} 8. a3 {[%emt 0:01:13]} b6 {[%emt 0:10:00]} 9. Be2 {[%emt 0:13:39]} Bb7 {[%emt 0:00:20]} 10. Nb3 {[%emt 0:07:10]} d6 {[%emt 0:08:14]} 11. O-O {[%emt 0:00:38]} Be7 {[%emt 0:00:26]} 12. f4 {[%emt 0:00:41]} O-O {[%emt 0:00:47]} 13. Rc1 {[%emt 0:03:25]} Rac8 {[%emt 0:05:38]} 14. Qe1 {[%emt 0:00:43]} Nd7 {[%emt 0:11:55]} 15. Qf2 {[%emt 0:01:07]} Bf6 {[%emt 0:01:14]} 16. Nd2 {[%emt 0:01:24]} Nc5 {[%emt 0:18:14]} 17. b4 {[%emt 0:03:43]} Bxc3 {[%emt 0:00:06]} 18. Rxc3 {[%emt 0:00:06]} Na4 {[%emt 0:00:05]} 19. Rcc1 {[%emt 0:18:12]} Ne7 {[%emt 0:11:08]} 20. f5 {[%emt 0:07:57]} exf5 {[%emt 0:03:41]} 21. exf5 {[%emt 0:00:34]} f6 {[%emt 0:00:58]} 22. Nb3 {[%emt 0:01:00]} d5 {[%emt 0:01:31]} 23. Nd4 {[%emt 0:01:33]} Rfe8 {[%emt 0:00:07]} 24. Bh5 {[%emt 0:12:19]} dxc4 {[%emt 0:01:34]} 25. Bxe8 {[%emt 0:00:20]} Rxe8 {[%emt 0:00:04]} 26. Bf4 {[%emt 0:01:08]} Qc8 {[%emt 0:01:48]} 27. Rfe1 {[%emt 0:02:20]} b5 {[%emt 0:02:06]} 28. Qg3 {[%emt 0:03:32]} Kf7 {[%emt 0:04:23]} 29. Qh3 {[%emt 0:00:49]} Kg8 {[%emt 0:01:00]} 30. Qg4 {[%emt 0:02:07]} g6 {[%emt 0:01:13]} 31. Re6 {[%emt 0:01:50]} Bd5 {[%emt 0:03:09]} 32. Rxf6 {[%emt 0:00:48]} Be4 {[%emt 0:00:30]} 33. Re1 {[%emt 0:03:44]} Bxf5 {[%emt 0:02:02]} 34. Qg3 {[%emt 0:00:31]} Bd3 {[%emt 0:06:58]} 35. Rfe6 {[%emt 0:01:31]} Qd7 {[%emt 0:03:13]} 36. Nc6 {[%emt 0:00:25]} Nxc6 {[%emt 0:00:34]} 37. Rxe8+ {[%emt 0:00:04]} Kf7 {[%emt 0:00:19]} 38. Qh4 {[%emt 0:01:45]} h5 {[%emt 0:00:38]} 39. R8e3 {[%emt 0:00:46]} Nc3 {[%emt 0:00:32]} 40. Be5 {[%emt 0:00:37]} Nd5 {[%emt 0:01:20]} 41. Rf3+ {[%emt 0:00:10]} Kg8 {[%emt 0:00:28]} 42. Qg5 {[%emt 0:00:58]} Bf5 {[%emt 0:00:33]} 43. Bb2 {[%emt 0:01:18]} Kh7 {[%emt 0:00:46]} 44. h3 {[%emt 0:00:49]} Nd8 {[%emt 0:00:27]} 45. Rxf5 {[%emt 0:00:15]} Qxf5 {[%emt 0:00:46]} 46. Qxd8 {[%emt 0:00:05]} c3 {[%emt 0:00:19]} 47. Bxc3 {[%emt 0:00:09]} 1-0

[Event "Baku Open 2024"]
[Site "Baku"]
[Date "2024.07.05"]
[Round "7.34"]
[White "Ismayil, Malak"]
[Black "Rustamov, Rustam"]
[Result "0-1"]
[ECO "B51"]
[WhiteElo "2165"]
[BlackElo "2285"]
[Annotator "RC"]
[PlyCount "52"]
[EventDate "2024.06.29"]
[EventType "swiss"]
[EventCountry "AZE"]
[SourceTitle "playchess.com"]
[Source "ChessBase"]
[SourceQuality "1"]
[TimeControl "5400+30"]

1. e4 {[%emt 0:00:03]} c5 {[%emt 0:00:29]} 2. Nf3 {[%emt 0:00:04]} d6 {[%emt 0:00:04]} 3. Bb5+ {[%emt 0:00:04]} Nd7 {[%emt 0:00:09]} 4. d4 {[%emt 0:01:38]} cxd4 {[%emt 0:02:07]} 5. Qxd4 {[%emt 0:00:05]} a6 {[%emt 0:00:07]} 6. Be2 {[%emt 0:00:04]} e5 {[%emt 0:01:05]} 7. Qe3 {[%emt 0:01:20]} Ngf6 {[%emt 0:01:23]} 8. c4 {[%emt 0:00:35]} d5 {[%emt 0:02:01]} 9. exd5 {[%emt 0:25:23]} Bc5 {[%emt 0:00:08]} 10. Qb3 {[%emt 0:00:03]} e4 {[%emt 0:01:29]} 11. Ng1 {[%emt 1:06:41]} Ne5 {[%emt 0:09:50]} 12. Be3 {[%emt 0:00:00]} Qa5+ {[%emt 0:03:29]} 13. Nd2 {[%emt 0:00:00]} Bxe3 {[%emt 0:01:38]} 14. Qxe3 {[%emt 0:00:00]} O-O {[%emt 0:04:11]} 15. Qc3 {[%emt 0:00:00]} Qxc3 {[%emt 0:02:30]} 16. bxc3 {[%emt 0:00:00]} Re8 {[%emt 0:00:09]} 17. Rb1 {[%emt 0:00:00]} b5 {[%emt 0:00:24]} 18. cxb5 {[%emt 0:00:00]} Nd3+ {[%emt 0:00:32]} 19. Kf1 {[%emt 0:00:00]} axb5 {[%emt 0:10:17]} 20. f3 {[%emt 0:00:00]} Nxd5 {[%emt 0:00:52]} 21. Bxd3 {[%emt 0:00:00]} exd3 {[%emt 0:00:09]} 22. f4 {[%emt 0:00:00]} Rxa2 {[%emt 0:02:10]} 23. Ngf3 {[%emt 0:00:00]} Bg4 {[%emt 0:00:51]} 24. Rxb5 {[%emt 0:00:00]} Bxf3 {[%emt 0:01:09]} 25. Nxf3 {[%emt 0:00:00]} Ne3+ {[%emt 0:00:09]} 26. Ke1 {[%emt 0:00:00]} Re2# {[%emt 0:00:11]} 0-1

[Event "Baku Open 2024"]
[Site "Baku"]
[Date "2024.07.05"]
[Round "7.35"]
[White "Bharadia Yash"]
[Black "Moosavifar, Seyed Abolfazl"]
[Result "0-1"]
[ECO "C82"]
[WhiteElo "2100"]
[BlackElo "2283"]
[Annotator "TA"]
[PlyCount "78"]
[EventDate "2024.06.29"]
[EventType "swiss"]
[EventCountry "AZE"]
[SourceTitle "playchess.com"]
[Source "ChessBase"]
[SourceQuality "1"]
[TimeControl "5400+30"]

{[%evp 21,78,48,68,63,106,101,102,87,105,93,104,52,76,0,0,0,0,-6,-6,-14,-18,-18,-20,-31,-38,-14,-25,-22,-18,-44,-28,-31,0,-115,-106,-108,-103,-280,-281,-1242,-181,-259,-237,-504,-518,-635,-626,-592,-592,-676,-685,-725,-694,-968,-958,-762,-246,-29996,-29997]} 1. e4 {[%emt 0:00:20]} e5 {[%emt 0:01:40]} 2. Nf3 {[%emt 0:00:03]} Nc6 {[%emt 0:00:02]} 3. Bb5 {[%emt 0:00:07]} a6 {[%emt 0:00:04]} 4. Ba4 {[%emt 0:00:03]} Nf6 {[%emt 0:00:01]} 5. O-O {[%emt 0:00:07]} Nxe4 {[%emt 0:00:12]} 6. d4 {[%emt 0:00:04]} b5 {[%emt 0:00:02]} 7. Bb3 {[%emt 0:00:06]} d5 {[%emt 0:00:01]} 8. dxe5 {[%emt 0:00:06]} Be6 {[%emt 0:00:04]} 9. c3 {[%emt 0:00:05]} Be7 {[%emt 0:02:16]} 10. Bc2 {[%emt 0:00:14]} Nc5 {[%emt 0:01:25]} 11. Re1 {[%emt 0:06:27]} Bg4 {[%emt 0:03:24]} 12. b4 {[%emt 0:08:05]} Ne4 {[%emt 0:13:11]} 13. a4 {[%emt 0:14:37]} Rb8 {[%emt 0:07:40]} 14. axb5 {[%emt 0:06:54] White is better.} axb5 {[%emt 0:00:01]} 15. Ra6 {[%emt 0:04:11]} Qd7 {[%emt 0:05:01]} 16. Qd3 {[%emt 0:11:05]} (16. h3 $1 $16 {[%cal Rh3g4]} Bf5 17. Rxc6 Qxc6 18. Nd4) 16... Bxf3 {[%emt 0:12:57]} 17. gxf3 {[%emt 0:03:24]} (17. Qxf3 $16 Nxe5 18. Qd1) 17... Nxe5 $11 {[%emt 0:01:45]} 18. Qe2 {[%emt 0:02:54]} Qc8 {[%emt 0:09:43]} (18... Qh3 $5 19. Bd1 $8 O-O $11 (19... Qc8 $2 20. Ra5 $18)) 19. Ra3 {[%emt 0:07:55] [#]} Qh3 $1 {[%emt 0:01:46]} 20. Bd1 {[%emt 0:12:57][%cal Oc1f4] [#]} Rb6 $1 {[%emt 0:09:43]} 21. Bf4 $1 {[%emt 0:02:48]} (21. fxe4 Rg6+) 21... Rg6+ {[%emt 0:00:44]} 22. Bg3 {[%emt 0:00:06]} Nxg3 $40 {[%emt 0:00:10][%mdl 128] Black has some attack. Excellent horsemanship.} 23. Qxb5+ {[%emt 0:08:02]} (23. Qxe5 $2 Ne2+ 24. Kh1 Qxf3#) (23. fxg3 O-O 24. f4 (24. Qxe5 $2 Bd6 $19) 24... Bh4 (24... Ng4 $2 25. Qg2 $18)) 23... Nc6 {[%emt 0:00:11]} 24. fxg3 {[%emt 0:01:46]} O-O {[%emt 0:00:53][%cal Oe7d6] Strongly threatening ...Bd6!} 25. Qf1 {[%emt 0:02:32]} Qf5 {[%emt 0:13:15]} 26. Ba4 {[%emt 0:00:40] Threatens to win with Bxc6.} Bh4 {[%emt 0:06:33][%cal Oh4g3] White must now prevent ...Bxg3!} (26... Bd6 $5 27. f4 (27. Bxc6 $2 Bxg3 28. Re2 Be5+ 29. Kh1 Rxc6 $19) 27... Ne7 $15) 27. Ra2 {[%emt 0:01:57] [#]} (27. Bxc6 $2 Bxg3 28. Re2 (28. hxg3 $2 Rxg3+ $19) 28... Be5+ 29. Kh1 Rxc6 $19) (27. Kg2 $1 $11 Ne5 28. Bb5) 27... Bxg3 $1 $17 {[%emt 0:03:08][%mdl 512] Black is more active.} 28. hxg3 {[%emt 0:00:16] And now Rg2 would win.} Ne5 $1 {[%emt 0:00:01]} (28... Rxg3+ 29. Rg2 Rxg2+ 30. Qxg2 $11) 29. Kg2 {[%emt 0:05:01] This costs White the game.} (29. Nd2 $17 Rxg3+ 30. Kf2 Nd3+ 31. Kxg3 Qg5+ (31... Qf4+ 32. Kg2 $11) 32. Kh2 (32. Kh3 Qf5+ 33. Kg2 Qg5+ 34. Kh1 Qh4+ 35. Kg2 Nf4+ 36. Kg1 Nh3+ 37. Kg2 Nf4+ 38. Kg1 Qg3+ 39. Kh1 Qh4+ 40. Kg1 $11) 32... Qh4+ 33. Qh3 Qf2+ 34. Qg2 Qh4+ 35. Qh3 Qf2+ 36. Qg2 Qh4+ 37. Qh3) 29... Qf4 $19 {[%emt 0:01:58]} 30. g4 {[%emt 0:01:14]} (30. Qf2 Nd3 31. Bc2 Nxf2 (31... Nxe1+ 32. Qxe1 Qc4 33. Rb2 $11) 32. Bxg6) 30... h5 $2 {[%emt 0:02:08]} (30... Rh6 {[%csl Gh6][%cal Rf4h2]} 31. Qf2 Nd3 (31... Rh2+ $2 32. Kf1 $19)) 31. Bd1 {[%emt 0:00:49] [#]} (31. Rxe5 {was necessary.} Qxe5 32. Qe2) 31... f5 $1 {[%emt 0:00:00]} (31... hxg4 32. fxg4 Qg5 33. Kg1 $11) 32. g5 {[%emt 0:00:57] [#]} ({Avoid the trap} 32. Qe2 $2 fxg4 (32... Nc4 33. Qd3 $16) 33. Kh1 gxf3 $19 (33... Qxf3+ 34. Qxf3 gxf3 35. Bb3 $11) (33... Nxf3 $2 34. Nd2 $19)) (32. Rxe5 {was the only defense.} Qxe5 33. Qe2) 32... Nd3 $1 {[%emt 0:01:55][%mdl 512] aiming for ...Qh4.} 33. Ree2 {[%emt 0:00:35]} (33. Kh1 Qh4+) 33... Nc1 {[%emt 0:01:44]} ({Not} 33... Qxg5+ 34. Kh1 $11) 34. Kh1 {[%emt 0:00:21]} Nxa2 {[%emt 0:00:02]} 35. Rxa2 {[%emt 0:00:01]} Rxg5 {[%emt 0:00:30] Hoping for ...Rf6.} 36. Bb3 {[%emt 0:01:01]} Re8 {[%emt 0:01:03]} 37. Bxd5+ {[%emt 0:00:21]} Kh7 {[%emt 0:00:01] ( -> ...Qg3)} 38. Rh2 {[%emt 0:00:13]} Qg3 $2 {[%emt 0:00:11]} (38... Rg4 {...Rh4 is the strong threat.} 39. Rxh5+ Kg6) 39. Rf2 $2 {[%emt 0:01:04] [#]} (39. Rh3 $19 Qf4 (39... Qe1 $2 40. Bc4 $19) 40. c4) 39... Re1 $3 {[%emt 0:04:35][%mdl 512] Weighted Error Value: White=0.72/Black=0.36.  Loses game:     	White=1     	---        Mistake:       	White=6     	Black=1      Inaccurate:     	White=1     	Black=2      OK:         	White=6     	Black=5      Best:        	White=3     	Black=7      Strong:       	White=1     	Black=2      Brilliant:      	---       	Black=2} 0-1